{"text_format":"3","workbook":"xlsx","n_sheets":1,"sheets":["Informacja_dodatkowa"],"not_rendered":{"defined_names":2,"comments":1},"read":"whole","date_system":"1900"}

{"sheet":"Informacja_dodatkowa","index":0,"n_rows":301,"n_cols":11,"rows_kept":301,"merged":[[2,2,2,8],[4,2,4,8],[8,2,8,6],[9,2,9,3],[9,4,9,6],[10,2,10,3],[10,4,10,6],[11,4,11,6],[12,2,12,3],[12,4,12,6],[16,2,16,6],[17,3,17,4],[17,5,17,6],[18,3,18,4],[18,5,18,6],[22,2,22,6],[23,2,24,2],[23,3,24,4],[23,5,23,6],[25,3,25,4],[26,3,26,4],[29,2,29,8],[39,2,39,10],[49,2,49,6],[50,2,51,2],[50,3,51,3],[50,4,50,5],[50,6,51,6],[56,2,56,6],[57,2,58,2],[57,3,58,3],[57,4,57,5],[57,6,58,6],[67,2,67,6],[73,2,73,9],[78,2,78,6],[79,2,80,2],[79,3,80,3],[79,4,79,5],[79,6,80,6],[91,2,91,8],[92,2,95,2],[92,3,92,6],[92,7,93,8],[93,3,93,4],[93,5,93,6],[94,3,94,8],[105,2,105,8],[106,2,109,2],[106,3,106,6],[106,7,107,8],[107,3,107,4],[107,5,107,6],[108,3,108,8],[120,2,120,4],[121,2,122,2],[121,3,121,4],[132,2,132,4],[133,2,134,2],[133,3,133,4],[140,2,140,4],[150,2,150,3],[157,2,157,4],[158,2,158,4],[159,2,159,3],[160,2,160,3],[163,2,163,3],[197,2,197,3],[248,2,248,4],[250,2,251,2],[250,3,250,4],[262,2,262,3],[278,2,279,2],[278,3,278,4]]}
[]
[]
[null,null,"FUNDACJA  NUTRICIA w Warszawie ul. Bobrowiecka 8"]
[]
[null,null,"Informacja dodatkowa za  2017 r."]
[]
[]
[]
[1,null,"a. Stosowane metody wyceny aktywów i pasywów"]
[null,null,"Wyszczególnienie",null,"Przyjęte metody wyceny w zasadach (polityce) rachunkowości"]
[null,null,"Środki trwałe i wartości niematerialne i prawne",null,"Według cen nabycia lub kosztu wytworzenia zgodnie z ustawą o rachunkowości"]
[null,null,"Środki pieniężne w gotówce i na rachunkach bankowych",null,"W wartościach nominalnych"]
[null,null,"Zobowiązania i należnści",null,"Wycenia się w kwocie wymaganej zapłaty"]
[]
[]
[]
[1,null,"b. Zmiany stosowanych metod wyceny aktywów i pasywów - przyczyny i wynik"]
[null,null,"Wyszczególnienie zmiany ","Przyczyny zmiany",null,"Kwota wyniku finansowego spowodowana zmianami"]
[null,null,"Nie dotyczy","Nie dotyczy",null,0]
[]
[]
[]
[1,null,"c. Informacje o  zdarzeniach gospodarczych po dacie bilansu nieujęte w księgach handlowych"]
[null,null,"Wyszczególnienie zdarzeń","Kwota w złotych",null,"Nie uwzględniono w "]
[{"$nulls":5},"Bilansie ","Rachunku wyników"]
[null,null,"nie dotyczy",0,null,0,0]
[null,null,"nie dotyczy",0,null,0,0]
[]
[]
[2,null,"a. Rzeczowe aktywa trwałe - środki trwałe"]
[null,null,"Nazwa grupy składników majątku trwałego","Stan na początek roku obrotowego","Aktualizacja","Przychody","Przemieszczenia ","Rozchody","Stan na koniec roku obrotowego"]
[null,null,"1. grunty (w tym prawo użytkowania gruntu)",0,0,0,0,0,{"$f":"D32+E32+F32+G32-H32","v":0}]
[null,null,"2. budynki, lokale i obiekty inżynierii lądowej i wodnej",0,0,0,0,0,{"$f":"D33+E33+F33+G33-H33","v":0}]
[null,null,"3. urządzenia techniczne i maszyny",{"v":3387.64,"d":"3,387.64 "},0,0,0,{"v":3387.64,"d":"3,387.64 "},{"$f":"D34+E34+F34+G34-H34","v":0}]
[null,null,"4. środki transportu ",0,0,0,0,0,{"$f":"D35+E35+F35+G35-H35","v":0}]
[null,null,"5. inne środki trwałe",0,0,0,0,0,{"$f":"D36+E36+F36+G36-H36","v":0}]
[null,null,"Razem",{"$f":"SUM(D32:D36)","v":{"v":3387.64,"d":"3,387.64 "}},0,0,0,{"v":3387.64,"d":"3,387.64 "},0]
[]
[]
[2,null,"b. Umorzenie środków trwałych - amortyzacja"]
[null,null,"Nazwa grupy składników majątku trwałego","Stan na początek roku obrotowego","Aktualizacja","Amortyzacja za rok","Inne zwiększenia","Zmniejszenie","Stan na koniec roku obrotowego","Stan na początek roku obrotowego (netto)","Stan na koniec roku obrotowego (netto)"]
[null,null,"1. grunty (w tym prawo użytkowania gruntu)",0,0,0,0,0,{"$f":"D42-E42+F42+G42-H42","v":0},{"$f":"D32-D42","v":0},{"$f":"I32-I42","v":0}]
[null,null,"2. budynki, lokale i obiekty inżynierii lądowej i wodnej",0,0,0,0,0,{"$f":"D43-E43+F43+G43-H43","v":0},{"$f":"D33-D43","v":0},{"$f":"I33-I43","v":0}]
[null,null,"3. urządzenia techniczne i maszyny",{"v":2371.32,"d":"2,371.32 "},0,{"v":508.14,"d":"508.14 "},0,{"v":2879.46,"d":"2,879.46 "},{"$f":"D44-E44+F44+G44-H44","v":0},{"$f":"D34-D44","v":{"v":1016.3199999999997,"d":"1,016.32 "}},{"$f":"I34-I44","v":0}]
[null,null,"4. środki transportu ",0,0,0,0,0,{"$f":"D45-E45+F45+G45-H45","v":0},{"$f":"D35-D45","v":0},{"$f":"I35-I45","v":0}]
[null,null,"5. inne środki trwałe",0,0,0,0,0,{"$f":"D46-E46+F46+G46-H46","v":0},{"$f":"D36-D46","v":0},{"$f":"I36-I46","v":0}]
[null,null,"Razem",{"$f":"SUM(D42:D46)","v":{"v":2371.32,"d":"2,371.32 "}},{"$f":"SUM(E42:E46)","v":0},{"v":508.14,"d":"508.14 "},0,{"v":2879.46,"d":"2,879.46 "},0,{"v":1016.3199999999997,"d":"1,016.32 "},0]
[]
[]
[2,null,"c. Grunty użytkowane wieczyście"]
[{"$nulls":3},"Stan na początek roku obrotowego","Zmiany w ciągu roku",null,"Stan na koniec roku obrotowego"]
[{"$nulls":4},"Zwiększenia","Zmniejszenia"]
[null,null,"Powierzchnia m2",0,0,0,{"$f":"D53+E53-F53","v":0}]
[null,null,"Wartość",0,0,0,{"$f":"D54+E54-F54","v":0}]
[]
[]
[2,null,"d.  Środki trwałe używana na podstawie umowy najmu lub dzierżawy"]
[{"$nulls":3},"Stan na początek roku obrotowego","Zmiany w ciągu roku",null,"Stan na koniec roku obrotowego"]
[{"$nulls":4},"Zwiększenia","Zmniejszenia"]
[null,null,"1. grunty (w tym prawo użytkowania gruntu)",0,0,0,{"$f":"D60+E60-F60","v":0}]
[null,null,"2. budynki, lokale i obiekty inżynierii lądowej i wodnej",0,0,0,{"$f":"D61+E61-F61","v":0}]
[null,null,"3. urządzenia techniczne i maszyny",0,0,0,{"$f":"D62+E62-F62","v":0}]
[null,null,"4. środki transportu ",0,0,0,{"$f":"D63+E63-F63","v":0}]
[null,null,"5. inne środki trwałe",0,0,0,{"$f":"D64+E64-F64","v":0}]
[null,null,"Razem",{"$f":"SUM(D60:D64)","v":0},{"$f":"SUM(E60:E64)","v":0},{"$f":"SUM(F60:F64)","v":0},{"$f":"SUM(G60:G64)","v":0}]
[]
[]
[2,null,"e. Wartości niematerialne i prawne"]
[null,null,"Nazwa grupy składników majątku trwałego","Stan na początek roku obrotowego","Przychody","Rozchody","Stan na koniec roku obrotowego"]
[null,null,"1. Inne wartości niematerialne i prawne",0,0,0,{"$f":"D70+E70-F70","v":0}]
[null,null,"Razem",0,{"$f":"SUM(E70:E70)","v":0},{"$f":"SUM(F70:F70)","v":0},{"$f":"SUM(G70:G70)","v":0}]
[]
[]
[2,null,"f. Umorzenie wartości niematerialnych i prawnych - amortyzacja"]
[null,null,"Nazwa grupy składników majątku trwałego","Stan na początek roku obrotowego","Amortyzacja za rok","Inne zwiększenia","Zmniejszenie","Stan na koniec roku obrotowego","Stan na początek roku obrotowego (netto)","Stan na koniec roku obrotowego (netto)"]
[null,null,"1. Inne wartości niematerialne i prawne",0,0,0,0,{"$f":"D76+E76+F76-G76","v":0},{"$f":"D70-D76","v":0},{"$f":"G70-H76","v":0}]
[null,null,"Razem",{"$f":"SUM(D76:D76)","v":0},0,0,0,0,0,0]
[]
[2,null,"g. Inwestycje długoterminowe"]
[{"$nulls":3},"Stan na początek roku obrotowego","Zmiany w ciągu roku",null,"Stan na koniec roku obrotowego"]
[{"$nulls":4},"Zwiększenia","Zmniejszenia"]
[null,null,"1. Nieruchomości",0,0,0,{"$f":"D82+E82-F82","v":0}]
[null,null,"2. Wartości niematerialne i prawne",0,0,0,{"$f":"D83+E83-F83","v":0}]
[null,null,"3. Długoterminowe aktywa finansowe",0,0,0,0]
[null,null,"a. udziały i akcje",0,0,0,0]
[null,null,"b. inne papiery wartościowe",0,0,0,0]
[null,null,"c. udzielone pożyczki",0,0,0,0]
[null,null,"d. inne długoterminowe aktywa finansowe",0,0,0,0]
[null,null,"4. Inne długoterminowe inwestycje",0,0,0,0]
[null,null,"Razem",{"$f":"SUM(D82:D89)","v":0},{"$f":"SUM(E82:E89)","v":0},{"$f":"SUM(F82:F89)","v":0},{"$f":"SUM(G82:G89)","v":0}]
[]
[2,null,"h. Podział należności  według pozycji bilansu o pozostałym na dzień bilansowy, przewidywanym umową okresie spłaty "]
[null,null," Należności z tytułu","okres wymagalności",{"$nulls":3},"Razem"]
[{"$nulls":3},"do 1 roku",null,"powyżej 1 roku"]
[{"$nulls":3},"stan na"]
[{"$nulls":3},"początek roku obrotowego","koniec roku obrotowego","początek roku obrotowego","koniec roku obrotowego","początek roku obrotowego","koniec roku obrotowego"]
[null,null,"1. dostaw i usług",0,0,0,0,{"$f":"D97+F97","v":0},0]
[null,null,"2. podatków",0,0,0,0,0,0]
[null,null,"3. środków od  ZUS",0,{"v":15.81,"d":"15.81 "},0,0,0,{"v":15.81,"d":"15.81 "}]
[null,null,"4. wynagrodzeń",0,0,0,0,0,0]
[null,null,"5. dochodzone na drodze sądowej",0,0,0,0,{"$f":"D101+F101","v":0},0]
[null,null,"6. innych należności",{"v":55500,"d":"55,500.00 "},{"$f":"21015.81-E99","v":{"v":21000,"d":"21,000.00 "}},0,0,{"$f":"D102+F102","v":{"v":55500,"d":"55,500.00 "}},{"v":21000,"d":"21,000.00 "}]
[null,null,"Razem",{"$f":"SUM(D97:D102)","v":{"v":55500,"d":"55,500.00 "}},{"v":21015.81,"d":"21,015.81 "},0,0,{"v":55500,"d":"55,500.00 "},{"v":21015.81,"d":"21,015.81 "}]
[]
[]
[2,null,"i. Podział zobowiązań według pozycji bilansu o pozostałym na dzień bilansowy, przewidywanym umową okresie spłaty"]
[null,null,"Zobowiązania z tytułu","okres wymagalności",{"$nulls":3},"Razem"]
[{"$nulls":3},"do 1 roku",null,"powyżej 1 roku"]
[{"$nulls":3},"stan na"]
[{"$nulls":3},"początek roku obrotowego","koniec roku obrotowego","początek roku obrotowego","koniec roku obrotowego","początek roku obrotowego","koniec roku obrotowego"]
[null,null,"1. kredytów i pożyczek",0,0,null,null,{"$f":"D111+F111","v":0},{"$f":"E111+G111","v":0}]
[null,null,"2. dostaw i usług",0,{"v":0.8,"d":"0.80 "},null,null,{"$f":"D112+F112","v":0},{"$f":"E112+G112","v":{"v":0.8,"d":"0.80 "}}]
[null,null,"3. podatków",{"v":580,"d":"580.00 "},{"$f":"294","v":{"v":294,"d":"294.00 "}},null,null,{"v":580,"d":"580.00 "},{"v":294,"d":"294.00 "}]
[null,null,"4. ubezpieczeń społecznych",0,0,null,null,0,0]
[null,null,"5. wynagrodzeń",0,{"v":6.47,"d":"6.47 "},null,null,0,{"v":6.47,"d":"6.47 "}]
[null,null,"6. zobowiązań wekslowych",0,0,null,null,0,0]
[null,null,"7. innych zobowiązań",{"$f":"2460+37555+80.68+400+134.07+450","v":{"v":41079.75,"d":"41,079.75 "}},{"$f":"1585.27-E113-E115-E112","v":{"v":1284,"d":"1,284.00 "}},null,null,{"v":41079.75,"d":"41,079.75 "},{"v":1284,"d":"1,284.00 "}]
[null,null,"Razem",{"$f":"SUM(D111:D117)","v":{"v":41659.75,"d":"41,659.75 "}},{"v":1585.27,"d":"1,585.27 "},0,0,{"v":41659.75,"d":"41,659.75 "},{"v":1585.27,"d":"1,585.27 "}]
[]
[]
[2,null,"j. Rozliczenia międzyokresowe czynne i bierne "]
[null,null,"Tytuły","stan na "]
[{"$nulls":3},"początek roku obrotowego","koniec roku obrotowego"]
[null,null,"1.Ogółem czynne rozliczenia międzyokresowe kosztów wg tytułów:",{"$f":"SUM(D125:D128)","v":{"v":5814.2699999999995,"d":"5,814.27 "}},{"$f":"SUM(E125:E128)","v":{"v":2546.87,"d":"2,546.87 "}}]
[null,null,"a. opłacone z góry czynsze z tytułu wynajmowania pomieszczeń",0,0]
[null,null,"b. opłacone z góry prenumeraty czasopism i innych publikacji",0,0]
[null,null,"c. opłacone z góry ubezpieczenia majątkowe i osobowe",0,0]
[null,null,"d. inne czynne rozliczenia międzyokresowe kosztów",{"$f":"1842.54+738+1287+944.64+12693.6-7594.23-4097.28","v":{"v":5814.2699999999995,"d":"5,814.27 "}},{"$f":"748+501.84+738+186.34+372.69","v":{"v":2546.87,"d":"2,546.87 "}}]
[null,null,"2.Ogółem bierne rozliczenia międzyokresowe kosztów wg tytułów:",{"$f":"SUM(D130)","v":0},{"$f":"SUM(E130)","v":0}]
[null,null,"a. inne bierne rozliczenia międzyokresowe kosztów",0,0]
[]
[]
[2,null,"k. Rozliczenia międzyokresowe przychodów"]
[null,null,"Tytuły","stan na "]
[{"$nulls":3},"początek roku obrotowego","koniec roku obrotowego"]
[null,null,"1.Rozliczenia międzyokresowe przychodów (wyszczególnienie wg tytułów)",{"$f":"SUM(D137:D138)","v":0},{"$f":"SUM(E137:E138)","v":0}]
[{"$nulls":3},0,0]
[]
[]
[]
[2,null,"l. Informacje o zyskach i stratach nadzwyczajnych"]
[null,null,"Wyszczególnienie ","Rok bieżący","Rok ubiegły"]
[null,null,"Zyski nadzwyczajne - losowe",0,0]
[null,null,"Zyski nadzwyczajne - pozostałe",0,0]
[null,null,"Suma",{"$f":"SUM(D143:D144)","v":0},0]
[null,null,"Straty nadzwyczajne - losowe",0,0]
[null,null,"Straty nadzwyczajne - pozostałe",0,0]
[null,null,"Suma",{"$f":"SUM(D146:D147)","v":0},0]
[]
[]
[2,null,"M. Zatrudnienie i wynagrodzenia"]
[null,null,"Wyszczególnienie","Przeciętne zatrudnienie w roku"]
[null,null,"pracownicy ksiegowośc",{"v":2,"d":"2.00 "}]
[null,null,"koordynator badań naukowych",{"v":1,"d":"1.00 "}]
[]
[null,null,"Ogółem",{"$f":"SUM(D153:D155)","v":{"v":3,"d":"3.00 "}}]
[]
[null,null,"Wypełniają organizacje prowadzące działalność statutową odpłatną i nieodpłatną pożytku publicznego oraz prowadzące tylko działalność statutową odpłatną pożytku publicznego. W pozostałych przypadkach wpisać n/d"]
[2,null,"N. Informacja o wypłaconych wynagrodzeniach powyżej określonego poziomie w art. 9 ust. 1 pkt 2 Ustawy o działalności pożytku publicznego i o wolontariacie      (Dz.U. Nr 96 poz. 873 z późn. zm.)"]
[null,null,"Wyszczególnienie",null,"Liczba osób"]
[null,null,"Liczba osób, które przekroczyły w/w wynagrodzenie",null,"n/d"]
[]
[]
[3,null,"Informacje o strukturze przychodów - źródła i wysokość"]
[null,null,"a. Przychody z działalności statutowej ",{"$f":"D167+D173+D177","v":{"v":4391090.38,"d":"4,391,090.38 "}}]
[null,null,"Składki brutto określone statutem"]
[null,null,"Przychody z działalności statutowej nieodpłatnej pożytku publicznego",{"$f":"SUM(D168:D172)","v":0}]
[null,null,"(wyszczególnienie)"]
[]
[]
[]
[]
[null,null,"Przychody z działalności statutowej odpłatnej pożytku publicznego",{"$f":"SUM(D174:D176)","v":{"v":5200,"d":"5,200.00 "}}]
[null,null,"(wyszczególnienie)",{"v":5200,"d":"5,200.00 "}]
[]
[]
[null,null,"Pozostałe przychody określone statutem",{"$f":"SUM(D178:D180)","v":{"v":4385890.38,"d":"4,385,890.38 "}}]
[null,null,"(wyszczególnienie - darowizny)",{"$f":"4184875+50000","v":{"v":4234875,"d":"4,234,875.00 "}}]
[null,null,"(wyszczególnienie - 1%)",{"v":133.7,"d":"133.70 "}]
[null,null,"(wyszczególnienie - NPNK)",{"v":150881.68,"d":"150,881.68 "}]
[]
[]
[3,null,"b. Pozostałe przychody",{"$f":"SUM(D184:D186)","v":{"v":559,"d":"559.00 "}}]
[null,null,"Przychody ze sprzedaży środków trwałych, środków trwałych w budowie oraz wartości niematerialnych i prawnych",{"v":559,"d":"559.00 "}]
[null,null,"Przychody z likwidacji środków trwałych"]
[null,null,"Inne"]
[]
[]
[3,null,"c. Przychody finansowe",{"$f":"SUM(D190:D195)","v":{"v":678.91,"d":"678.91 "}}]
[null,null,"Cena sprzedaży akcji i udziałów"]
[null,null,"Odsetki od lokat, wkładów bankowych",{"v":678.91,"d":"678.91 "}]
[null,null,"Odsetki od pożyczek"]
[null,null,"Odsetki od posiadanych papierów wartościowych"]
[null,null,"Otrzymane dywidendy od akcji obcych"]
[null,null,"Inne przychody finansowe"]
[]
[]
[4,null,"a. Informacje o strukturze kosztów"]
[null,null,"Koszty realizacji działalności statutowej nieodpłatnej pożytku publicznego",{"$f":"D200+D204","v":{"v":3807479.81,"d":"3,807,479.81 "}}]
[null,null,"świadczenia pieniężne:",{"$f":"SUM(D201:D203)","v":{"v":3807479.81,"d":"3,807,479.81 "}}]
[null,null,"badana naukowe i działania edukacyjne w dziedzinie żywienia",{"$f":"165217+1388159.62+64970+10000.61+10000+151000+149875.99+28000+2460+210700+92705.92+44772+20000+57880+27280+326029.2+73828.92+15504+40000+22878","v":{"v":2901261.2600000002,"d":"2,901,261.26 "}}]
[null,null,"sympozja, szkolenia, konsutacje",{"$f":"73668.32-5200","v":{"v":68468.32,"d":"68,468.32 "}}]
[null,null,"inne - usługi PR i koordynacji projektów",{"v":837750.23,"d":"837,750.23 "}]
[null,null,"świadczenia niepieniężne:",{"$f":"SUM(D205:D207)","v":0}]
[null,null,"komputer wraz z wyposażeniem",0]
[]
[]
[null,null,"Koszty realizacji działalności statutowej odpłatnej pożytku publicznego",{"$f":"D209+D213","v":{"v":5200,"d":"5,200.00 "}}]
[null,null,"świadczenia pieniężne:",{"$f":"SUM(D210:D212)","v":{"v":5200,"d":"5,200.00 "}}]
[null,null,"(wyszczególnienie)",{"v":5200,"d":"5,200.00 "}]
[]
[]
[null,null,"świadczenia niepieniężne:",{"$f":"SUM(D214:D216)","v":0}]
[null,null,"(wyszczególnienie)"]
[]
[]
[null,null,"Pozostałe koszty realizacji zadań statutowych",{"$f":"D218+D222","v":{"v":263363.5,"d":"263,363.50 "}}]
[null,null,"świadczenia pieniężne",{"$f":"SUM(D219:D221)","v":{"v":263363.5,"d":"263,363.50 "}}]
[{"$nulls":3},{"$f":"73000+144300+46063.5","v":{"v":263363.5,"d":"263,363.50 "}}]
[]
[]
[null,null,"świadczenia niepieniężne",{"$f":"SUM(D223:D225)","v":0}]
[null,null,"(wyszczególnienie)"]
[]
[]
[null,null,"Koszty administracyjne:",{"$f":"SUM(D227:D232)","v":{"v":150757.01,"d":"150,757.01 "}}]
[null,null,"- zużycie materiałów i energii",{"v":2369.4,"d":"2,369.40 "}]
[null,null,"- usługi obce",{"v":96758.6,"d":"96,758.60 "}]
[null,null,"- podatki i opłaty",0]
[null,null,"- wynagrodzenia oraz ubezpieczenia społeczne i inne świadczenia",{"v":51120.87,"d":"51,120.87 "}]
[null,null,"- amortyzacja",{"v":508.14,"d":"508.14 "}]
[null,null,"- pozostałe koszty",0]
[]
[]
[4,null,"b. Pozostałe koszty",{"$f":"SUM(D236:D238)","v":{"v":1492.18,"d":"1,492.18 "}}]
[null,null,"wartość netto sprzedanych środków trwałych, środków trwałych w budowie oraz wartości niematerialnych i prawnych",{"v":508.18,"d":"508.18 "}]
[null,null,"wartość netto z likwidacji środków trwałych, wartości niematerialnych i prawnych w wyniku zdarzeń mieszczących się w granicach ogólnego ryzyka gospodarczego"]
[null,null,"Inne",{"v":984,"d":"984.00 "}]
[]
[]
[4,null,"c. Koszty finansowe",{"$f":"SUM(D242:D247)","v":0}]
[null,null,"Wartość ewidencyjna sprzedanych udziałów i akcji, stanowiących długo i krótkoterminowe aktywa finansowe",0]
[null,null,"Odsetki od kredytów i pożyczek oprócz odsetek od kredytów inwestycyjnych w okresie realizacji inwestycji",0]
[null,null,"Opłacone prowizje od zaciągniętych kredytów, oprócz prowizji od kredytów inwestycyjnych",0]
[null,null,"Zapłacone odsetki za nieterminową regulację zobowiązań",0]
[null,null,"Odsetki i dodatkowe opłaty od środków trwałych przejętych w leasing finansowy",0]
[null,null,"Inne koszty finansowe",0]
[]
[5,null,"a. Źródła zwiększenia i wykorzystanie funduszu statutowego"]
[]
[null,null,"Wyszczególnienie","Fundusz"]
[{"$nulls":3},"statutowy","z aktualizacji wyceny"]
[null,null,"1. Stan na początek roku obrotowego",{"v":50000,"d":"50,000.00 "}]
[null,null,"a. zwiększenia",{"$f":"D255+D256","v":0},{"$f":"E255+E256","v":0}]
[null,null,"- z zysku"]
[null,null,"- inne"]
[null,null,"b. zmniejszenia",{"$f":"D258+D259","v":0},{"$f":"E258+E259","v":0}]
[null,null,"- pokrycie straty"]
[null,null,"- inne"]
[null,null,"2. Stan na koniec okresu obrotowego",{"$f":"D253+D254-D257","v":{"v":50000,"d":"50,000.00 "}},{"$f":"E253+E254-E257","v":0}]
[]
[]
[5,null,"b. Rozliczenie wyniku na działalności statutowej"]
[]
[null,null,"Wynik na działalności statutowej",{"$f":"SUM(D267:D275)","v":{"v":164035.78999999975,"d":"164,035.79 "}}]
[null,null,"w tym:"]
[null,null,"Przychody statutowe",{"$f":"D165+D183+D189","v":{"v":4392328.29,"d":"4,392,328.29 "}}]
[null,null,"badania naukowe i działania edukacyjne w dziedzinie żywienia",{"$f":"-D201","v":{"v":-2901261.2600000002,"d":"-2,901,261.26 "}}]
[null,null,"darowizny",{"$f":"-144300-46063.5","v":{"v":-190363.5,"d":"-190,363.50 "}}]
[null,null,"sympozja, szkolenia , konferencje",{"$f":"-D202-D209","v":{"v":-73668.32,"d":"-73,668.32 "}}]
[null,null,"stypendia",0]
[null,null,"konsultacje",{"v":-73000,"d":"-73,000.00 "}]
[null,null,"usługi promocji, reklamy, usługi PR i koordynacji projektów",{"$f":"-D203","v":{"v":-837750.23,"d":"-837,750.23 "}}]
[null,null,"koszty administacyjne",{"$f":"-D226","v":{"v":-150757.01,"d":"-150,757.01 "}}]
[null,null,"pozostałe koszty",{"$f":"-D235","v":{"v":-1492.18,"d":"-1,492.18 "}}]
[]
[]
[6,null,"Zobowiązania związane z działalnością statutową:"]
[null,null,"Tytuły","stan na "]
[{"$nulls":3},"początek roku obrotowego","koniec roku obrotowego"]
[null,null,"1. gwarancje",0,0]
[null,null,"2. poręczenia",0,0]
[null,null,"3. kaucje i wadia",0,0]
[null,null,"4. inne zobowiązania",{"$f":"D118","v":{"v":41659.75,"d":"41,659.75 "}},{"$f":"E118","v":{"v":1585.27,"d":"1,585.27 "}}]
[null,null,"Razem",{"$f":"SUM(D281:D284)","v":{"v":41659.75,"d":"41,659.75 "}},{"$f":"SUM(E281:E284)","v":{"v":1585.27,"d":"1,585.27 "}}]
[]
[]
[]
[null,null,"Data sporzadzenia : 30 marca 2018 r.",null,"Zatwierdził  :"]
[]
[null,null,"Sporzadziła :  Renata Kasperowicz",null,"Mariola Urbanowska - Jęcek              ……………………………………….                                  "]
[]
[{"$nulls":4},"Marcin Gendźwiłł                              …….………………………………….                                                       "]
[]
[{"$nulls":4},"Barbara Wójcicka -  Bartłomiejczyk  ……………………………………….."]
[]
[{"$nulls":4},"Agnieszka Dolna","                     .................................................."]
[]
[{"$nulls":4},"Marta Szulc","                     .................................................."]
[]
[{"$nulls":4},"Adam Aleksiejuk","                     .................................................."]